Cogmind - Beta 15 @@@ ROGUE MODE // 2025.08.08 @ 10:45:11 Player: Koba Result: Escaped! Performance ------------- Evolutions (9) 4500 Regions Visited (14) 2800 Robots Destroyed (74) 370 Value Destroyed (2003) 2003 Prototype IDs (54) 1080 Alien Tech Used (0) 0 Bonus (4443) 4443 TOTAL SCORE: 15196 Bonus ------- Follower Combat Kills 169 Entered DSFs 1000 Aligned with FarCom 300 Win 3000 Friendly Fire -26 Cogmind --------- Core Integrity 1499/1600 Matter 219/300 Energy 218/220 System Corruption 0% Temperature Cool (89) Movement Flying (34) Location To Epsilon Eridani Parts ------- > --- POWER (2) -------- Light Antimatter Reactor Micro Antimatter Reactor > --- PROPULSION (7) --- Q-thruster Impulse Thruster Array Impulse Thruster Array Impulse Thruster Array > --- UTILITY (14) ----- Small Storage Unit Machine Analyzer Enhanced Optical Array Experimental Signal Interpreter Experimental Transmission Jammer Hacking Suite Experimental Hacking Suite > --- WEAPON (2) ------- Enhanced Nova Cannon Gravity Flail > --- INVENTORY (8) ---- Q-thruster Improved KE Penetrator Micro-nuke Launcher Peak State ------------ > --- POWER ------------ Micro Antimatter Reactor Light Quantum Reactor > --- PROPULSION ------- Flying Fortress v7 Q-thruster Impulse Thruster Array > --- UTILITY ---------- Small Storage Unit Structural Scanner Machine Analyzer Enhanced Optical Array Experimental Signal Interpreter Experimental Transmission Jammer Improved Cloaking Device Centrium Light Armor Plating Hacking Suite Experimental Hacking Suite System Shield Advanced Component Analysis Suite > --- WEAPON ----------- Enhanced Nova Cannon Gravity Flail > --- INVENTORY -------- Light Antimatter Reactor Q-thruster Impulse Thruster Array Impulse Thruster Array Improved KE Penetrator Micro-nuke Launcher [Rating: 162] Favorites ----------- Power Ion Engine Engine Ion Engine Power Core Light Nuclear Core Reactor Light Particle Reactor Propulsion Flying Fortress v7 Treads Light Treads Leg Aluminum Leg Wheel Compact Wheel Flight Unit Flying Fortress v7 Utility Hacking Suite Device Structural Scanner Storage Small Storage Unit Processor Enhanced Optical Array Hackware Hacking Suite Protection Improved Utility Shielding Weapon Force Lance Energy Gun Small Laser Energy Cannon Nova Cannon Ballistic Gun Assault Rifle Ballistic Cannon Flak Cannon Launcher Grenade Launcher Impact Weapon Power Maul Slashing Weapon Blade Saw Piercing Weapon Force Lance Build | -11 -10 -10 -10 -9 -8 -7 -6 -5 -4 -4 -3 -2 -2 -1 ------- Run | Yrd Mat Min Exi Min Mat Fac Fac Fac Fac DSF Res Res DSF Acc Slots Evolved 18 | . . . . . 4 2 2 2 2 . 2 2 . 2 Power 1 | . . . . . . . . . 1 . . . . . Propulsion 5 | . . . . . 2 . 1 . . . 1 . . 1 Utility 12 | . . . . . 2 2 1 2 1 . 1 2 . 1 Weapon . | . . . . . . . . . . . . . . . Parts Attached 105 | 8 8 1 1 2 21 17 11 4 4 1 17 3 3 4 Power 15 | 1 3 . 1 . 2 2 1 . 1 . 2 1 1 . Engine 6 | 1 3 . 1 . 1 . . . . . . . . . Core 5 | . . . . . 1 2 1 . 1 . . . . . Reactor 4 | . . . . . . . . . . . 2 1 1 . Propulsion 21 | 2 3 1 . . 6 1 2 . . . 1 . 2 3 Treads 5 | . 1 1 . . 3 . . . . . . . . . Leg 2 | 2 . . . . . . . . . . . . . . Wheel 5 | . 2 . . . 3 . . . . . . . . . Hover . | . . . . . . . . . . . . . . . Flight 9 | . . . . . . 1 2 . . . 1 . 2 3 Utility 41 | 2 2 . . . 4 10 6 4 1 . 10 2 . . Device 17 | 1 . . . . . 4 3 3 1 . 4 1 . . Storage 4 | 1 2 . . . . 1 . . . . . . . . Processor 4 | . . . . . . . 2 . . . 2 . . . Hackware 6 | . . . . . . 1 1 1 . . 2 1 . . Protection 10 | . . . . . 4 4 . . . . 2 . . . Artifact . | . . . . . . . . . . . . . . . Weapon 28 | 3 . . . 2 9 4 2 . 2 1 4 . . 1 Energy Gun 1 | 1 . . . . . . . . . . . . . . Energy Cannon 2 | . . . . . . . . . . . 1 . . 1 Ballistic Gun 11 | 2 . . . 1 4 1 1 . 1 . 1 . . . Ballistic Cannon 4 | . . . . . 2 1 . . . . 1 . . . Launcher 3 | . . . . 1 . 1 . . . 1 . . . . Special Weapon . | . . . . . . . . . . . . . . . Impact Weapon 5 | . . . . . 2 1 1 . . . 1 . . . Slashing Weapon 1 | . . . . . 1 . . . . . . . . . Piercing Weapon 1 | . . . . . . . . . 1 . . . . . Special Melee Weapon . | . . . . . . . . . . . . . . . Unidentified Prototypes 10 | . . . . . 2 . 3 . . . 4 1 . . Parts Lost 19 | . 1 2 . . 5 1 . . . 2 1 . . 7 Power 4 | . . . . . 1 1 . . . 1 . . . 1 Propulsion 3 | . 1 1 . . . . . . . . . . . 1 Utility 9 | . . . . . 2 . . . . 1 1 . . 5 Weapon 3 | . . 1 . . 2 . . . . . . . . . Highest Loss Streak 6 | . 1 2 . . 1 1 . . . 2 1 . . 6 To Critical Strikes . | . . . . . . . . . . . . . . . Average Backups 10 | 4 15 17 16 14 16 8 6 7 5 7 6 6 6 5 Power 1 | . 3 6 4 4 2 . . 1 . . . 1 1 . Propulsion 3 | 2 6 6 4 4 5 1 2 2 2 2 1 3 2 2 Utility 2 | . 3 4 4 4 3 2 2 1 2 4 1 . . . Weapon 2 | . 1 1 2 2 3 2 1 2 1 1 1 2 2 2 Tool/Special . | . . . . . . . . . . . . . . . Unused Backups 34 | . . . 2 . 7 5 2 2 . . 11 . 3 2 Power 5 | . . . 1 . . . . 1 . . 3 . . . Propulsion 12 | . . . 1 . 2 3 2 . . . 1 . 3 . Utility 10 | . . . . . 2 . . . . . 6 . . 2 Weapon 7 | . . . . . 3 2 . 1 . . 1 . . . Tool/Special . | . . . . . . . . . . . . . . . Average Slot Usage (%) 85 | . 99 98 71 88 93 75 79 76 80 81 84 82 79 74 Engine 3 | . 14 14 14 14 5 . . . . . . . . . Core 2 | . . . . . 3 6 5 5 10 8 . . . . Reactor 2 | . . . . . . . . . . . 8 8 8 8 Treads 6 | . 11 12 14 14 18 . . . . . . . . . Wheel 6 | . 11 14 14 14 17 . . . . . . . . . Flight 6 | . . . . . . 6 13 11 10 10 14 13 13 12 Device 12 | . 14 14 14 14 . 14 16 19 20 21 17 17 17 15 Storage 7 | . 14 14 14 14 9 7 6 5 5 5 4 4 4 4 Processor 4 | . . . . . . . 2 5 5 5 12 13 13 12 Hackware 6 | . . . . . . 4 7 14 15 14 13 13 13 10 Protection 9 | . . . . . 21 17 10 5 5 5 2 4 4 4 Ballistic Gun 7 | . 28 17 . 8 9 6 6 . 2 2 1 . . . Ballistic Cannon 1 | . . . . . 5 . . . . . . . . . Impact Weapon 2 | . . . . . . 6 6 5 . . 1 4 4 4 Peak Build Rating 162 | 7 9 9 10 12 36 62 77 85 102 102 136 151 145 162 Average Rating 65 | 5 8 8 8 10 27 58 72 79 96 99 123 143 143 154 On Entrance 61 | . 7 9 9 10 12 35 62 77 80 102 94 136 145 145 Naked Turns . | . . . . . . . . . . . . . . . Heaviest Build 70 | 14 49 48 46 49 70 60 29 33 46 46 57 56 56 51 Greatest Support 74 | 20 20 16 16 16 32 50 67 55 55 57 61 61 66 74 Greatest Overweight (x) 3 | 3 3 2 2 3 2 2 . . . . 1 . . . Average Overweight (x) . | . 2 2 2 2 1 . . . . . . . . . Largest Inventory Capacity 20 | 8 20 20 20 20 20 20 8 8 8 8 8 8 8 8 Average Capacity 12 | 7 19 20 20 20 20 8 8 8 8 8 8 8 8 8 Most Carried 20 | 6 20 20 19 19 20 20 8 8 7 7 8 8 8 8 Average Carried 11 | 4 15 17 18 17 19 8 6 7 5 7 7 7 7 7 Final Capacity 20 | 8 20 20 20 20 20 8 8 8 8 8 8 8 8 8 Final Carried 20 | 6 20 17 18 19 20 8 8 7 7 7 8 8 8 3 Class Distribution -------------------- 45% | Mutant 37% | Hacker-Ninja 13% | Infiltrator-Mutant Dominant Class ---------------- Mutant | -10/Materials Mutant | -10/Mines Mutant | -10/Exiles Mutant | -9/Mines Mutant | -8/Materials Infiltrator-Mutant | -7/Factory Infiltrator-Mutant | -6/Factory Hacker-Ninja | -5/Factory Hacker-Ninja | -4/Factory Hacker-Ninja | -4/DSF Hacker-Ninja | -3/Research Hacker-Ninja | -2/Research Hacker-Ninja | -2/DSF Hacker-Ninja | -1/Access Resources | -11 -10 -10 -10 -9 -8 -7 -6 -5 -4 -4 -3 -2 -2 -1 ----------- Run | Yrd Mat Min Exi Min Mat Fac Fac Fac Fac DSF Res Res DSF Acc Matter Collected 2680 | 296 219 109 . 70 918 386 214 20 80 . 359 . . 9 Remotely . | . . . . . . . . . . . . . . . Salvage Created 2863 | 117 518 88 . 19 1020 301 295 . 159 24 322 . . . Parts 132 | 6 29 7 . 6 40 17 12 . 5 1 9 . . . Haulers Intercepted 7 | . 1 . . . 3 1 1 . . . 1 . . . Recyclers Shooed 7 | . . . . . 5 1 . . . . 1 . . . Parts Field Recycled . | . . . . . . . . . . . . . . . Retrieved Matter . | . . . . . . . . . . . . . . . Parts Self-Destructed . | . . . . . . . . . . . . . . . Prevented . | . . . . . . . . . . . . . . . Kills | -11 -10 -10 -10 -9 -8 -7 -6 -5 -4 -4 -3 -2 -2 -1 ------- Run | Yrd Mat Min Exi Min Mat Fac Fac Fac Fac DSF Res Res DSF Acc Combat Hostiles Destroyed 39 | . 10 2 . 4 13 5 2 . . 2 1 . . . Melee 2 | . . . . . . . . . . 2 . . . . Guns 24 | . 10 2 . . 8 2 2 . . . . . . . Cannons 5 | . . . . . 5 . . . . . . . . . AOE 7 | . . . . 4 . 3 . . . . . . . . Classes Destroyed 13 | 2 3 . . 1 5 1 . . . 1 . . . . Worker 3 | . . . . . 1 2 . . . . . . . . Builder 6 | . . . . . 1 . . . . . 5 . . . Tunneler 1 | 1 . . . . . . . . . . . . . . Hauler 7 | . 1 . . . 3 1 1 . . . 1 . . . Recycler 6 | 1 . . . . 3 1 . . 1 . . . . . Operator 4 | . . . . . 2 1 1 . . . . . . . Watcher 8 | . 1 . . . 2 1 2 . . . 2 . . . Swarmer 8 | . . . . 4 . 3 . . . . 1 . . . Cutter 2 | . . . . . . . . . . 2 . . . . Grunt 21 | . 10 2 . . 9 . . . . . . . . . Brawler 1 | . . . . . 1 . . . . . . . . . Sentry 4 | . . . . . 3 . 1 . . . . . . . Programmer 3 | . . . . . . 2 1 . . . . . . . Best Kill Streak 5 | 1 3 2 . 4 5 3 2 . 1 2 5 . . . Combat Bots Only 5 | . 3 2 . 4 5 3 1 . . 2 1 . . . Max Kills in Single Turn 4 | 1 1 1 . 4 1 2 1 . 1 1 1 . . . Gunslinging . | . . . . . . . . . . . . . . . Exploded 4 | . . . . 4 . 2 . . . . . . . . Melee 1 | . . . . . . . . . . 1 . . . . Uniques/NPCs Destroyed . | . . . . . . . . . . . . . . . Combat | -11 -10 -10 -10 -9 -8 -7 -6 -5 -4 -4 -3 -2 -2 -1 -------- Run | Yrd Mat Min Exi Min Mat Fac Fac Fac Fac DSF Res Res DSF Acc Hostile Shots Fired 471 | . 51 18 . 2 67 63 82 . . 77 20 . 1 90 Missed 193 | . 8 4 . . 15 34 42 . . 47 9 . . 34 Hits 278 | . 43 14 . 2 52 29 40 . . 30 11 . 1 56 Melee 2 | . . . . . 1 . . . . 1 . . . . Projectile 276 | . 43 14 . 2 51 29 40 . . 29 11 . 1 56 AOE 2 | . . . . . . . . . . 2 . . . . Critical Strikes 9 | . 3 1 . . 3 1 . . . . 1 . . . Damage Taken 4693 | . 537 199 . 61 960 695 286 . . 312 332 . 91 1220 Core 711 | . 172 54 . . 181 110 31 . . 37 25 . . 101 Absorbed by Shields 4 | . . . . . . . . . . 4 . . . . Redirected to Shielding 36 | . . . . . 11 18 7 . . . . . . . Ignored by Resistances 45 | . . . . . 45 . . . . . . . . . Regen/Repaired (Parts) 25 | . . . . . . . 25 . . . . . . . Core Remaining (%) 84 | 100 . . . 9 67 84 96 100 . 96 98 . 100 93 Volleys Fired 263 | 4 49 9 . 6 89 34 16 . . 1 41 . . 14 Largest 2 | 2 2 2 . 2 2 1 1 . . 1 1 . . 1 Hottest 120 | 40 40 60 . 40 74 40 28 . . 49 113 . . 120 Shots Fired 402 | 8 98 18 . 8 163 35 16 . . 1 41 . . 14 Gun 287 | 8 98 18 . 4 107 25 16 . . . 11 . . . Cannon 108 | . . . . . 56 8 . . . . 30 . . 14 Launcher 7 | . . . . 4 . 2 . . . 1 . . . . Special . | . . . . . . . . . . . . . . . Kinetic 329 | 8 98 16 . 4 143 33 16 . . . 11 . . . Thermal 66 | . . 2 . . 20 . . . . . 30 . . 14 Explosive 7 | . . . . 4 . 2 . . . 1 . . . . Electromagnetic . | . . . . . . . . . . . . . . . Robot Hit Streak 13 | 5 10 9 . 5 13 5 10 . . 7 3 . . . Robot Miss Streak 9 | 2 9 1 . 1 8 1 2 . . . 7 . . . Penetration Max . | . . . . . . . . . . . . . . . Secondary Targets 2 | . 1 . . . 1 . . . . . . . . . Max Gunslinging Chain 1 | . 1 . . . 1 . . . . . . . . . Shots Hit Robots 277 | 5 55 15 . 5 131 28 18 . 1 3 16 . . . Core Hits 146 | 3 28 6 . 5 78 12 5 . . 3 6 . . . Critical Kills 1 | . . . . . . . 1 . . . . . . . Critical Parts Destroyed 5 | . . . . . . 1 2 . . . 2 . . . Critical Strikes 7 | . . . . . . 1 3 . . 1 2 . . . Destroy 1 | . . . . . . . 1 . . . . . . . Smash 5 | . . . . . . 1 2 . . . 2 . . . Impale 1 | . . . . . . . . . . 1 . . . . Melee Attacks 191 | . . . . . 5 37 24 7 6 5 98 1 . 8 Impact 118 | . . . . . 3 37 24 7 . . 38 1 . 8 Slashing 2 | . . . . . 2 . . . . . . . . . Piercing 71 | . . . . . . . . . 6 5 60 . . . Sneak Attacks 12 | . . . . . . 3 1 . 1 . 7 . . . Combat Hostiles . | . . . . . . . . . . . . . . . Follow-up Attacks . | . . . . . . . . . . . . . . . Damage Inflicted 6229 | 59 575 145 . 215 1911 1288 568 . 113 302 1053 . . . Guns 2725 | 59 575 145 . 36 1069 467 278 . . . 96 . . . Cannons 843 | . . . . . 696 108 . . . . 39 . . . Explosions 767 | . . . . 179 . 364 . . . 224 . . . . Melee 1715 | . . . . . . 349 290 . 113 78 885 . . . Ramming 179 | . . . . . 146 . . . . . 33 . . . Kinetic 3354 | 59 575 122 . 36 1613 575 278 . . . 96 . . . Thermal 380 | . . 23 . . 152 166 . . . . 39 . . . Explosive 601 | . . . . 179 . 198 . . . 224 . . . . Electromagnetic . | . . . . . . . . . . . . . . . Impact 1229 | . . . . . . 349 290 . . . 590 . . . Slashing . | . . . . . . . . . . . . . . . Piercing 486 | . . . . . . . . . 113 78 295 . . . Highest Corruption 6 | . 2 2 2 2 1 6 . . . . . . . . Average Corruption 2 | . 2 2 2 2 1 4 . . . . . . . . Corruption Purged . | . . . . . . . . . . . . . . . Corruption Blocked . | . . . . . . . . . . . . . . . Effects 42 | . 9 2 5 6 6 14 . . . . . . . . Message Errors 13 | . 4 . 2 2 2 3 . . . . . . . . Matter Fused 9 | . 1 1 3 . . 4 . . . . . . . . Heat Flow Errors 1 | . 1 . . . . . . . . . . . . . Energy Discharges 8 | . 1 . . 3 1 3 . . . . . . . . Data Loss (minor) 5 | . 1 1 . . 2 1 . . . . . . . . Data Loss (major) 3 | . 1 . . . . 2 . . . . . . . . Misfires 1 | . . . . . . 1 . . . . . . . . Alerts 2 | . . . . 1 1 . . . . . . . . . Overload Shots . | . . . . . . . . . . . . . . . Overflow Damage 921 | . . . . . 3 173 138 . 83 26 498 . . . Projectiles 4 | . . . . . . 4 . . . . . . . . Explosions 27 | . . . . . . 1 . . . 26 . . . . Melee 890 | . . . . . 3 168 138 . 83 . 498 . . . Knockbacks 31 | . . . . . 25 2 2 . . . 2 . . . Impact 5 | . . . . . . 1 2 . . . 2 . . . Kinetic 23 | . . . . . 22 1 . . . . . . . . Secondary 3 | . . . . . 3 . . . . . . . . . Self-Inflicted Damage 202 | . . . . 44 70 . . . . 72 16 . . . Shots 3 | . . . . 2 . . . . . 1 . . . . Rammed 11 | . . . . . 10 . . . . . 1 . . . Targets Rammed 11 | . . . . . 10 . . . . . 1 . . . Kicked . | . . . . . . . . . . . . . . . Crushed . | . . . . . . . . . . . . . . . Highest Temperature 473 | . 125 38 . . 271 13 473 . . . 468 . . 331 Average Temperature 91 | . 21 15 . . 84 6 104 . . . 113 . . 124 Received Heat Transfer 1005 | . 354 132 . . 432 . 78 . . . 9 . . . Effects 7 | . . . . . 1 . . . . . 6 . . . Shutdowns 3 | . . . . . . . . . . . 3 . . . Energy Bleed 1 | . . . . . 1 . . . . . . . . . Interference 3 | . . . . . . . . . . . 3 . . . Siege Activations . | . . . . . . . . . . . . . . . Martial Activations . | . . . . . . . . . . . . . . . Shielding Activations . | . . . . . . . . . . . . . . . Robots Disrupted . | . . . . . . . . . . . . . . . Combat Hostiles . | . . . . . . . . . . . . . . . Robots Corrupted 9 | . . . . . 1 2 3 . . . 3 . . . Combat Hostiles 1 | . . . . . . . . . . . 1 . . . Parts Fried 17 | . . . . . 2 1 5 . . . 9 . . . Impact Corruptions 28 | . . . . . 1 6 5 . . . 16 . . . Robots Melted . | . . . . . . . . . . . . . . . Combat Hostiles . | . . . . . . . . . . . . . . . Parts Melted 2 | . . . . . 1 1 . . . . . . . . Heat Transferred 537 | . . 50 . . 350 100 . . . . 37 . . . Parts Sabotaged . | . . . . . . . . . . . . . . . Parts Stolen . | . . . . . . . . . . . . . . . Parts Stripped . | . . . . . . . . . . . . . . . Power Chain Reactions . | . . . . . . . . . . . . . . . Alert | -11 -10 -10 -10 -9 -8 -7 -6 -5 -4 -4 -3 -2 -2 -1 ------- Run | Yrd Mat Min Exi Min Mat Fac Fac Fac Fac DSF Res Res DSF Acc Maximum Alert Level 1 | . . . . . . . . . . . 1 . . . Low Security (%) 99 | 100 100 100 . 100 100 100 100 100 100 100 98 100 100 100 Level 1 . | . . . . . . . . . . . 1 . . . Level 2 . | . . . . . . . . . . . . . . . Level 3 . | . . . . . . . . . . . . . . . Level 4 . | . . . . . . . . . . . . . . . Level 5 . | . . . . . . . . . . . . . . . High Security . | . . . . . . . . . . . . . . . Max Security . | . . . . . . . . . . . . . . . Peak Influence 200 | 5 67 30 . 114 106 107 94 8 20 103 200 122 84 50 Initial 111 | . . 3 . . . 27 33 . . . 51 111 84 50 Average 35 | 1 23 10 . 44 48 43 35 . 3 43 38 109 84 10 Influence Increases 2643 | 10 299 50 . 123 681 417 252 22 53 111 496 21 . 108 Destroy 0b10 Robot/C 880 | . 200 40 . 80 360 100 40 . . 40 20 . . . Destroy 0b10 Robot/NC 175 | 10 10 . . . 60 30 20 . 5 . 40 . . . Destroy Leader 260 | . 54 10 . 10 110 34 26 . . 10 6 . . . Allied During Kill 14 | . . . . 5 9 . . . . . . . . . Successful Hack 224 | . 5 . . . 33 26 56 8 10 . 32 18 . 36 Disable Machine 90 | . 15 . . . . 45 . . . . . . . 30 Destroy Structure 400 | . . . . 28 4 47 20 14 8 46 188 3 . 42 Partial Spotted 195 | . . . . . . 15 45 . 30 . 105 . . . Lose Combat Pursuer 405 | . 15 . . . 105 120 45 . . 15 105 . . . Influence Decreases 2628 | 10 289 60 . 123 620 409 320 23 53 18 391 107 28 177 Entered New Map 269 | . . 7 . . . 34 36 1 . . 42 87 28 34 Time Decay 2166 | 10 279 33 . 123 523 365 274 22 53 . 339 20 . 125 Lost Part 126 | . 10 20 . . 40 10 . . . 18 10 . . 18 Lost Ally 30 | . . . . . 20 . 10 . . . . . . . Purge Threat 37 | . . . . . 37 . . . . . . . . . Squads Dispatched 32 | . 4 . . 1 4 6 2 . 1 1 10 1 . 2 Investigation 9 | . 2 . . . 2 . 1 . 1 . 1 1 . 1 Extermination 12 | . . . . . . 4 1 . . . 6 . . 1 Reinforcement 10 | . 2 . . . 2 2 . . . 1 3 . . . Assault 1 | . . . . 1 . . . . . . . . . . Garrison . | . . . . . . . . . . . . . . . Intercept . | . . . . . . . . . . . . . . . Searches Triggered . | . . . . . . . . . . . . . . . Construction Impeded . | . . . . . . . . . . . . . . . Haulers Reinforced 2 | . . . . . . 1 . . . . 1 . . . Active Scanning Responses . | . . . . . . . . . . . . . . . Cargo Convoy Interrupts 1 | . . . . . . . . . . . 1 . . . Stealth | -11 -10 -10 -10 -9 -8 -7 -6 -5 -4 -4 -3 -2 -2 -1 --------- Run | Yrd Mat Min Exi Min Mat Fac Fac Fac Fac DSF Res Res DSF Acc Distress Signals 13 | . 2 . . . 6 2 2 . . . 1 . . . Communications Jammed 15 | . . . . . . . 13 . . . 2 . . . Distress Signals 15 | . . . . . . . 13 . . . 2 . . . Times Spotted 123 | . 22 2 . 4 33 16 9 . 1 4 24 . 1 7 Peak Tracking Total 5 | . 5 2 . 3 5 5 5 . 1 4 3 . 1 5 Tactical Retreats 17 | . 1 . . . 4 4 2 . . 1 5 . . . Traps | -11 -10 -10 -10 -9 -8 -7 -6 -5 -4 -4 -3 -2 -2 -1 ------- Run | Yrd Mat Min Exi Min Mat Fac Fac Fac Fac DSF Res Res DSF Acc Traps Triggered 11 | . 3 . . . 3 1 1 . 1 1 1 . . . Indirectly . | . . . . . . . . . . . . . . . Trap Hack Attempts . | . . . . . . . . . . . . . . . Triggered . | . . . . . . . . . . . . . . . Disarmed . | . . . . . . . . . . . . . . . Reprogrammed . | . . . . . . . . . . . . . . . Reused . | . . . . . . . . . . . . . . . Traps Extracted . | . . . . . . . . . . . . . . . Installed . | . . . . . . . . . . . . . . . Triggered . | . . . . . . . . . . . . . . . Machines | -11 -10 -10 -10 -9 -8 -7 -6 -5 -4 -4 -3 -2 -2 -1 ---------- Run | Yrd Mat Min Exi Min Mat Fac Fac Fac Fac DSF Res Res DSF Acc Machines Disabled 6 | . 1 . . . . 3 . . . . . . . 2 Max in Single Turn 1 | . 1 . . . . 1 . . . . . . . 1 Garrison Access 5 | . . . . . 1 1 . . . . 2 . . 1 Machines Repaired . | . . . . . . . . . . . . . . . Machines Dismantled . | . . . . . . . . . . . . . . . Machines Sabotaged . | . . . . . . . . . . . . . . . Overloaded Fab Kills . | . . . . . . . . . . . . . . . Hacking | -11 -10 -10 -10 -9 -8 -7 -6 -5 -4 -4 -3 -2 -2 -1 --------- Run | Yrd Mat Min Exi Min Mat Fac Fac Fac Fac DSF Res Res DSF Acc Machines Accessed 55 | . 4 . 1 . 7 7 9 3 5 . 12 2 . 5 Terminals 38 | . 4 . . . 6 4 5 2 3 . 9 2 . 3 Fabricators 1 | . . . . . . 1 . . . . . . . . Repair Stations 1 | . . . . . . . 1 . . . . . . . Recycling Units 6 | . . . . . . . 2 . 2 . 1 . . 1 Scanalyzers 1 | . . . . . . . 1 . . . . . . . Garrison Access 7 | . . . . . 1 2 . 1 . . 2 . . 1 Total Hacks 125 | . 8 . 1 . 21 19 23 9 11 . 19 4 . 10 Successful 60 | . 2 . 1 . 14 6 15 4 4 . 8 2 . 4 Failed 65 | . 6 . . . 7 13 8 5 7 . 11 2 . 6 Catastrophic 18 | . 2 . . . 1 5 3 2 1 . 3 . . 1 Database Lockouts . | . . . . . . . . . . . . . . . Manual 66 | . 4 . 1 . 11 14 11 4 5 . 13 1 . 2 Terminals 96 | . 8 . . . 20 14 15 6 7 . 16 4 . 6 Fabricators 1 | . . . . . . 1 . . . . . . . . Repair Stations 2 | . . . . . . . 2 . . . . . . . Recycling Units 12 | . . . . . . . 5 . 4 . 1 . . 2 Scanalyzers 1 | . . . . . . . 1 . . . . . . . Garrison Access 12 | . . . . . 1 4 . 3 . . 2 . . 2 Terminal Hacks 27 | . 2 . 1 . 8 1 6 3 1 . 3 1 . 1 Record 7 | . . . . . 2 . 3 1 . . 1 . . . Robot Analysis 1 | . . . . . . . 1 . . . . . . . Prototype ID Bank 5 | . 1 . . . 2 . 1 1 . . . . . . Open DSF 3 | . . . . . . . . . 1 . 1 1 . . Level Access Points 5 | . . . . . . 1 1 1 . . 1 . . 1 Unreport Threat 1 | . . . . . 1 . . . . . . . . . Hauler Manifests 3 | . 1 . . . 2 . . . . . . . . . Zone Layout 1 | . . . . . 1 . . . . . . . . . Proto ID Catalog 1 | . . . 1 . . . . . . . . . . . Fabricator Hacks 1 | . . . . . . 1 . . . . . . . . Network Status 1 | . . . . . . 1 . . . . . . . . Repair Station Hacks 2 | . . . . . . . 2 . . . . . . . Scan Component 1 | . . . . . . . 1 . . . . . . . Repair 1 | . . . . . . . 1 . . . . . . . Recycling Unit Hacks 6 | . . . . . . . 2 . 2 . 1 . . 1 Report Inventory 5 | . . . . . . . 2 . 1 . 1 . . 1 Retrieve Matter 1 | . . . . . . . . . 1 . . . . . Scanalyzer 1 | . . . . . . . 1 . . . . . . . Insert Component 1 | . . . . . . . 1 . . . . . . . Garrison Access Hacks 5 | . . . . . 1 1 . . . . 2 . . 1 Seal Access 5 | . . . . . 1 1 . . . . 2 . . 1 Unauthorized Hacks 18 | . . . . . 5 3 4 1 1 . 2 1 . 1 Terminals 18 | . . . . . 5 3 4 1 1 . 2 1 . 1 Assimilate 2 | . . . . . . . 2 . . . . . . . Botnet 16 | . . . . . 5 3 2 1 1 . 2 1 . 1 Fabricators . | . . . . . . . . . . . . . . . Repair Stations . | . . . . . . . . . . . . . . . Recycling Units . | . . . . . . . . . . . . . . . Scanalyzers . | . . . . . . . . . . . . . . . Garrison Access . | . . . . . . . . . . . . . . . Data Cores Recovered 1 | . . . . . 1 . . . . . . . . . Used . | . . . . . . . . . . . . . . . Hacking Detections 38 | . 4 . . . 5 4 5 3 3 . 9 1 . 4 Full Trace Events 5 | . . . . . 1 . . . 1 . 1 1 . 1 Feedback Events 2 | . . . . . . . . . . . 1 . . 1 Hackware Fried 2 | . . . . . . . . . . . 1 . . 1 Feedback Blocked . | . . . . . . . . . . . . . . . Robot Schematics Acquired . | . . . . . . . . . . . . . . . Robots Built . | . . . . . . . . . . . . . . . Authchips . | . . . . . . . . . . . . . . . Time . | . . . . . . . . . . . . . . . Total Robot Build Rating . | . . . . . . . . . . . . . . . Part Schematics Acquired . | . . . . . . . . . . . . . . . Parts Built . | . . . . . . . . . . . . . . . Authchips . | . . . . . . . . . . . . . . . Time . | . . . . . . . . . . . . . . . Total Part Build Rating . | . . . . . . . . . . . . . . . Parts Repaired 1 | . . . . . . . 1 . . . . . . . Time 38 | . . . . . . . 38 . . . . . . . Parts Recycled . | . . . . . . . . . . . . . . . Recycled Matter . | . . . . . . . . . . . . . . . Retrieved Matter . | . . . . . . . . . . . . . . . Retrieved Components . | . . . . . . . . . . . . . . . Parts Scanalyzed . | . . . . . . . . . . . . . . . Part Schematics Acquired . | . . . . . . . . . . . . . . . Parts Damaged . | . . . . . . . . . . . . . . . Bothacking | -11 -10 -10 -10 -9 -8 -7 -6 -5 -4 -4 -3 -2 -2 -1 ------------ Run | Yrd Mat Min Exi Min Mat Fac Fac Fac Fac DSF Res Res DSF Acc Used RIF Installer . | . . . . . . . . . . . . . . . Robots Hacked . | . . . . . . . . . . . . . . . Non-combat . | . . . . . . . . . . . . . . . Combat . | . . . . . . . . . . . . . . . Robot Hacks Applied . | . . . . . . . . . . . . . . . Relay Couplers Released . | . . . . . . . . . . . . . . . Fabnet Peak Effective % . | . . . . . . . . . . . . . . . Robots Rewired . | . . . . . . . . . . . . . . . Allies Hacked . | . . . . . . . . . . . . . . . Hacks Repelled . | . . . . . . . . . . . . . . . Allies | -11 -10 -10 -10 -9 -8 -7 -6 -5 -4 -4 -3 -2 -2 -1 -------- Run | Yrd Mat Min Exi Min Mat Fac Fac Fac Fac DSF Res Res DSF Acc Total Allies 2 | . . . . 1 . . 1 . . . . . . . Largest Group 1 | . . . . 1 1 . 1 . . . . . . . Highest-Rated Group 31 | . . . . 31 31 . 26 . . . . . . . Highest-Rated Ally 31 | . . . . 31 31 . 26 . . . . . . . Total Orders . | . . . . . . . . . . . . . . . Ally Attacks 14 | . . . . 1 13 . . . . . . . . . Total Damage 251 | . . . . . 251 . . . . . . . . . Kills 5 | . . . . . 5 . . . . . . . . . Allies Corrupted . | . . . . . . . . . . . . . . . Allies Melted . | . . . . . . . . . . . . . . . Intel | -11 -10 -10 -10 -9 -8 -7 -6 -5 -4 -4 -3 -2 -2 -1 ------- Run | Yrd Mat Min Exi Min Mat Fac Fac Fac Fac DSF Res Res DSF Acc Active Infowar (turns) 7267 | 34 971 110 421 303 45 1289 606 347 265 53 2353 44 31 395 Optics 3745 | . . . . . . . 324 347 265 53 2286 44 31 395 Structural 5373 | . . . . . . 1289 606 347 265 53 2353 44 31 385 Traps 1260 | . . . . . . . . 332 121 . 807 . . . Seismic 1884 | 34 971 110 421 303 45 . . . . . . . . . Machine Analysis 1981 | . . . . . . . . . . . 1511 44 31 395 Cloaking 2339 | . . . . . . . . . . . 1879 44 31 385 Jamming 5027 | . . . . . . 937 602 347 265 53 2353 44 31 395 ECM 1 | . . . . . . . . 1 . . . . . . Robot Analysis Total 1 | . . . . . . . 1 . . . . . . . Derelict Logs Recovered 3 | . . 2 . 1 . . . . . . . . . . Drone Launches . | . . . . . . . . . . . . . . . Drone Recoveries . | . . . . . . . . . . . . . . . Exploration | -11 -10 -10 -10 -9 -8 -7 -6 -5 -4 -4 -3 -2 -2 -1 ------------- Run | Yrd Mat Min Exi Min Mat Fac Fac Fac Fac DSF Res Res DSF Acc Turns Passed 9447 | 106 971 110 421 303 2043 1312 693 347 265 53 2353 44 31 395 Spaces Moved 9974 | 58 490 63 320 189 1167 1862 1151 471 460 76 2900 93 59 615 Core 18 | 18 . . . . . . . . . . . . . . Treads . | . . . . . . . . . . . . . . . Legs 114 | 40 74 . . . . . . . . . . . . . Wheels 2166 | . 416 63 320 189 1167 11 . . . . . . . . Hover . | . . . . . . . . . . . . . . . Flight 7676 | . . . . . . 1851 1151 471 460 76 2900 93 59 615 Fastest Speed 34 | 50 120 130 130 130 115 50 39 39 39 34 35 35 35 34 Average Speed 60 | 130 150 130 130 143 118 50 39 39 39 38 35 35 36 37 Slowest Speed 200 | 200 190 130 130 145 125 120 39 39 39 39 132 35 37 42 Overloaded Moves 5 | . . . . . . . . . . 5 . . . . Propulsion Burnouts . | . . . . . . . . . . . . . . . Robots Hopped 14 | . . . . . . . 2 . 3 . 7 2 . . Potential Cave-ins . | . . . . . . . . . . . . . . . Cave-ins Triggered 1 | . . . . . . 1 . . . . . . . . Exploration Rate (%) 43 | 5 86 18 76 48 66 40 38 17 14 82 68 5 73 17 Regions Visited 14 Branch Regions 3 Pre-discovered Areas 1 | . . . . 1 . . . . . . . . . . Known Exits Taken 7 | . . . . . 1 1 1 1 1 . 1 1 . . Unknown Exits Taken 5 | 1 1 1 1 1 . . . . . . . . . . Scrap Searched 2 | . . 1 . 1 . . . . . . . . . . Spaces Dug 195 | . . . . 14 3 29 20 7 4 2 100 1 . 15 Terrain Destroyed 267 | . . . . 32 3 59 21 7 4 23 102 1 . 15 Melee 145 | . . . . . 3 29 20 7 4 2 74 1 . 5 Projectile 39 | . . . . . . . 1 . . . 28 . . 10 AOE 83 | . . . . 32 . 30 . . . 21 . . . . Terrain Rammed . | . . . . . . . . . . . . . . . Walls Destroyed . | . . . . . . . . . . . . . . . Machines Disabled . | . . . . . . . . . . . . . . . Actions | -11 -10 -10 -10 -9 -8 -7 -6 -5 -4 -4 -3 -2 -2 -1 --------- Run | Yrd Mat Min Exi Min Mat Fac Fac Fac Fac DSF Res Res DSF Acc Total 12625 | 77 631 76 328 211 1677 2137 1326 621 530 86 4004 99 69 753 Wait 1864 | 2 73 . . 12 344 146 113 128 46 1 890 4 . 105 Move 9931 | 57 489 62 319 188 1166 1861 1146 470 453 75 2885 88 58 614 Hop 14 | . . . . . . . 2 . 3 . 7 2 . . Pick Up 97 | 6 11 1 1 2 19 13 5 5 4 . 26 . 2 2 Fast Attach 20 | 7 . . . 1 3 1 1 . 1 . 4 1 . 1 Attach 35 | . 1 2 . 1 7 6 3 2 3 . 5 1 . 4 Detach 7 | . . . 2 . . . 1 1 1 . . . 1 1 Swap 80 | 1 7 . 1 1 16 13 10 3 1 1 21 1 3 1 Drop 99 | . 1 2 5 . 18 26 5 5 2 . 26 1 5 3 Fire 263 | 4 49 9 . 6 89 34 16 . . 1 41 . . 14 Melee 191 | . . . . . 5 37 24 7 6 5 98 1 . 8 Ram 11 | . . . . . 10 . . . . . 1 . . . Kick . | . . . . . . . . . . . . . . . Crush . | . . . . . . . . . . . . . . . Escape Stasis 13 | . . . . . . . . . 10 3 . . . . Rewire . | . . . . . . . . . . . . . . . Trap . | . . . . . . . . . . . . . . . Miscellaneous . | . . . . . . . . . . . . . . . Route ------- -11/Scrapyard -10/Materials (discovered 2 exits: [*Mat] / [*Min]) -10/Mines -10/Exiles -9/Mines -8/Materials (discovered 3 exits: *Fac x3) -7/Factory (discovered 6 exits: *Fac x4 / Sto / [*Low]) -6/Factory (discovered 4 exits: *Fac x4) -5/Factory (discovered 4 exits: *Fac x4) -4/Factory (discovered 2 exits: *Res / DSF) -4/DSF -3/Research (discovered 3 exits: *Res x3) -2/Research -2/DSF -1/Access To Epsilon Eridani History --------- Turn | Location | Event 10 | -11/Scrapyard | Discovered new exit (range 16) 107 | -11/Scrapyard | Entered Materials 312 | -10/Materials | Build established: Mutant 408 | -10/Materials | Discovered new exit (range 12) 499 | -10/Materials | Discovered new exit (range 15) 814 | -10/Materials | Core integrity fell below 50% 1078 | -10/Materials | Entered Mines 1101 | -10/Mines | Core integrity fell below 20% 1117 | -10/Mines | Learned location of 1 exit from Materials 1183 | -10/Mines | Deemed a non-threat by the Exiles lab entrance 1183 | -10/Mines | Discovered new exit (range 5) 1188 | -10/Mines | Entered Exiles 1221 | -10/Exiles | Met 8R-AWN 1244 | -10/Exiles | Met EX-HEX 1284 | -10/Exiles | Met EX-BIN 1300 | -10/Exiles | Aligned with FarCom system 1301 | -10/Exiles | Given EX-Vault access code 1331 | -10/Exiles | Opened EX-Vault 1349 | -10/Exiles | Found Flying Fortress v7 1376 | -10/Exiles | Warned to stay clear of 0b10 Research branches 1410 | -10/Exiles | Met EX-DEC 1496 | -10/Exiles | Visited The Gauntlet 1597 | -10/Exiles | Discovered new exit (range 10) 1609 | -10/Exiles | Left Exiles lab with Flying Fortress v7 1609 | -10/Exiles | Entered Mines 1610 | -9/Mines | Met a Derelict testing a Signal Generator 1664 | -9/Mines | Learned 4 Materials zone layouts 1686 | -9/Mines | Learned location of Storage (-7) 1891 | -9/Mines | Discovered new exit (range 14) 1912 | -9/Mines | Entered Materials 1912 | -8/Materials | Accompanied by 1 ally 1912 | -8/Materials | Evolved 4 slots: Propulsion x2, Utility x2 1913 | -8/Materials | Identified exit to Factory 2317 | -8/Materials | Discovered exit to Factory (range 11) 3955 | -8/Materials | Entered Factory 3955 | -7/Factory | Evolved 2 slots: Utility x2 3956 | -7/Factory | Identified exit to Storage 4144 | -7/Factory | Discovered new exit (range 16) 4622 | -7/Factory | Build established: Infiltrator-Mutant 4648 | -7/Factory | Crushed by falling debris 5159 | -7/Factory | Identified exit to Factory 5267 | -7/Factory | Entered another Factory area 5267 | -6/Factory | Evolved 2 slots: Propulsion x1, Utility x1 5340 | -6/Factory | Repaired Lgt. Nuclear Core 5857 | -6/Factory | Identified exit to Factory 5901 | -6/Factory | Spotted B-75 Beast 5960 | -6/Factory | Entered another Factory area 5960 | -5/Factory | Evolved 2 slots: Utility x2 6061 | -5/Factory | Identified exit to Factory 6307 | -5/Factory | Entered another Factory area 6307 | -4/Factory | Evolved 2 slots: Power x1, Utility x1 6367 | -4/Factory | Build established: Hacker-Ninja 6371 | -4/Factory | Discovered new exit (range 17) 6572 | -4/Factory | Identified exit to DSF 6572 | -4/Factory | Entered DSF 6586 | -4/DSF | Additional patrols routed to DSF 6613 | -4/DSF | Discovered new exit (range 21) 6625 | -4/DSF | Entered Research 6625 | -3/Research | Evolved 2 slots: Propulsion x1, Utility x1 6632 | -3/Research | Found Prototype Processor 6675 | -3/Research | Identified Exp. Signal Interpreter 6837 | -3/Research | Found Prototype Launcher 6866 | -3/Research | Identified Com. Tesla Bomb Launcher 7077 | -3/Research | Spotted B-86 Titan 7689 | -3/Research | Found Prototype Device 7703 | -3/Research | Identified Adv. Kinecellerator 7892 | -3/Research | Cargo convoy interrupted 8408 | -3/Research | Found Prototype Hackware 8408 | -3/Research | Identified Exp. Hacking Suite 8717 | -3/Research | Hacking Suite fried by hacking feedback 8779 | -3/Research | Spotted Executioner 8885 | -3/Research | Identified exit to Research 8975 | -3/Research | Spotted B-86 Titan 8978 | -3/Research | Entered another Research area 8978 | -2/Research | Evolved 2 slots: Utility x2 8999 | -2/Research | Found Prototype Device 8999 | -2/Research | Identified Exp. Transmission Jammer 9022 | -2/Research | Identified exit to DSF 9022 | -2/Research | Entered DSF 9046 | -2/DSF | Discovered new exit (range 19) 9053 | -2/DSF | Identified exit to Access 9053 | -2/DSF | Entered Access 9053 | -1/Access | Evolved 2 slots: Propulsion x1, Utility x1 9183 | -1/Access | Identified exit to Surface 9295 | -1/Access | System Shield fried by hacking feedback 9426 | -1/Access | Spotted B-99 Colossus 9427 | -1/Access | Spotted B-99 Colossus 9448 | *** | Escaped! Last Messages --------------- 09438_ Penetrated by Slug. 09438_ Imp. Cloaking Device destroyed. 09438_ Slug penetrates Wall. 09438_ Penetrated by Slug. 09438_ Slug penetrates Wall. 09438_ Slug penetrates Earth. 09438_ Penetrated by Slug. 09438_ Slug penetrates Wall. 09438_ Structural Scanner destroyed. 09440_ U-05 Engineer builds a Wall. 09441_ Knocked back. 09441_ Slug penetrates Reinforced Barrier. 09441_ Knocked back. 09441_ Penetrated by Slug. 09441_ Centrium Light Armor Plating destroyed. 09441_ Penetrated by Slug. 09441_ Slug penetrates B-99 Colossus. 09442_ Acquired 1 matter. 09444_ Main Access Shell breached. [Achievement: Epsilon Run] Map ----- +----------------------------------------------------+ | ?"""""??"""""???????????????????????## ##????????? | | ?"""""??"""""???????????????????????## ##????????? | | ?"""""??"""""???????????????????????## ##????????? | | ?"""""??"""""???????????????????????## ##????????? | | ????????????????????????????????????## ##????????? | | ????????????????????????????????????## ##????????? | | ????????????????????????####???????### ####??????? | | ???????#???????????#########?######### ####??????? | | ?"""""" ???????????####### ####### ##??????? | | ?"""""" ???????? w " g "" ##??????? | | """""" ???????? Y * "T ##??????? | | """""" ????????????????## ####### ##??????? | | """""" ????????????????###??######### ###??????? | | ?? ? ??????????????????????????### ###??????? | | ? ? ???????????????????????????## ##???????? | | ? ? ???????????????????????????## ##???????? | | ? ? ???????????????????????????## ##???????? | | ? ??????????????????? ???## ##???????? | | ???????????????????#######?## ##???????? | | ?#########?????????##"####### ##???????? | | ##########?##########"####### ##???????? | | # ""?" " ##???????? | | ? # BB "??" " ##???????? | | ###/#+###" BB """" "" """ " ##???????? | | ### " "??" ##???????? | | p """" " "@ "??" ##???????? | | ### p "??" " "" "??" ##???????? | | ?##% % p BB"??" " "??" ggg ##???????? | | ?## #"" BB"??" """"""??" gg ##???????? | | ### %##" "??" ???????"""" """ ##???????? | | ### ### """" ???????""""T""" ##???????? | | ################???????"####### ##???????? | | ############# ####?????######## ##???????? | | ############## ############??## ########## | | """" # ################??## ########## | | """" # ##### ##??## ## | | """" # ##### ! ##??## ## | | """" # + + ##??## ## | | """" # ### # * ##?### ## | | # ### ################ ## | | + # ############## # " | | # """"" # # """ | | # """"" # " # G | | !!! # """"" # ############## # """ | | !!! # """"" ######################## " | | !! # """"" #######??????????####### | | # ##?????################# | | + ##?????###################+##### | | # ##?????## | | #### ###############?????## | +----------------------------------------------------+ Best States ------------- Heat Dissipation 77 Energy Generation 43 Energy Capacity 430 Matter Stores 300 Matter Capacity 300 Sight Range 22 Terrain Scan Density 10 Jamming Range 22 Cloak Strength 3 Power Amplification 30 Additional Mass Support 12 Armor Coverage 375 Resistance: TH 10 Resistance: EM 15 Utility Shielding 66 Evasion (%) 63 Offensive Hacking 36 Defensive Hacking 10 Item Schematics ----------------- None Robot Schematics ------------------ None Fabricated ------------ Nothing Repaired ---------- Lgt. Nuclear Core | 50% | -6/Factory Alien Tech Used ----------------- None Achievements -------------- Epsilon Run More Dakka Please No Signal Safety First Total Silence Challenges ------------ None Game ------ Seed SpikedDroneBoregun Manual? 0 Play Time 04:00:43 Cumulative 23.2 hours Start 2025.08.07 @ 16:06:18 End 2025.08.08 @ 10:45:11 Sessions 5 Manual Loads 0 Difficulty Rogue Special Mode None Game No. 21 Rogue 21 Adventurer 0 Explorer 0 Win Type 0 Total 1 Types 1/0/0/0/0/0/0/0/0/0 Lore% 19 Gallery% 17 Achievement% 23 Wizard Run 0 Options --------- Layout 1 ASCII 0 Keyboard 1 Movement Numpad Keybinds 0 Fullscreen 2 Font 24/Smallcaps Map View 50x35 Zoom Use 0% Tactical HUD 1 Map Filters NONE Filters NONE Steam 1 RUN: 86b322b5-0d48-4e7a-82b9-f1fdf0658fec